[Event "18èmeFestival International d’Echecsde Rochefort"]
[Site "Rochefort, France"]
[Date "2019.02.19"]
[Round "5.2"]
[White "MU, Ke"]
[Black "BOBADILLA VIERA, Jorge Samuel"]
[Result "1-0"]
[TimeControl "1h30 min/40coups + 30 min +  30sec/coup"]
[BlackTitle "IM"]
[WhiteFideId "8602778"]
[WhiteElo "2404"]
[BlackElo "2318"]

1. d4 {[%clk 01:29:04]} {[%emt 00:01:56]} Nf6 {[%clk 01:28:52]} {[%emt
00:02:08]} 2. c4 {[%clk 01:29:21]} {[%emt 00:00:12]} e6 {[%clk 01:29:06]}
{[%emt 00:00:17]} 3. Nf3 {[%clk 01:29:45]} {[%emt 00:00:05]} d5 {[%clk
01:29:24]} {[%emt 00:00:12]} 4. Nc3 {[%clk 01:30:07]} {[%emt 00:00:06]} Bb4
{[%clk 01:29:53]} {[%emt 00:00:03]} 5. Bg5 {[%clk 01:30:05]} {[%emt 00:00:32]}
Nbd7 {[%clk 01:30:17]} {[%emt 00:00:06]} 6. Rc1 {[%clk 01:26:07]} {[%emt
00:04:28]} c6 {[%clk 01:23:11]} {[%emt 00:07:36]} 7. a3 {[%clk 01:23:57]}
{[%emt 00:02:39]} Bxc3+ {[%clk 01:23:36]} {[%emt 00:00:06]} 8. Rxc3 {[%clk
01:24:20]} {[%emt 00:00:06]} h6 {[%clk 01:24:03]} {[%emt 00:00:03]} 9. Bxf6
{[%clk 01:22:15]} {[%emt 00:02:36]} Qxf6 {[%clk 01:23:50]} {[%emt 00:00:42]} 10.
cxd5 {[%clk 01:20:32]} {[%emt 00:02:13]} exd5 {[%clk 01:24:10]} {[%emt
00:00:10]} 11. Re3+ {[%clk 01:20:54]} {[%emt 00:00:07]} Kf8 {[%clk 01:24:15]}
{[%emt 00:00:25]} 12. h4 {[%clk 01:21:11]} {[%emt 00:00:14]} Qd6 {[%clk
01:16:33]} {[%emt 00:08:12]} 13. Qb3 {[%clk 01:16:36]} {[%emt 00:05:05]} Nf6
{[%clk 01:04:26]} {[%emt 00:12:36]} 14. Ne5 {[%clk 01:13:44]} {[%emt 00:03:22]}
Ng4 {[%clk 01:03:33]} {[%emt 00:01:24]} 15. Nxg4 {[%clk 01:07:19]} {[%emt
00:06:56]} Bxg4 {[%clk 01:04:01]} {[%emt 00:00:01]} 16. g3 {[%clk 01:05:12]}
{[%emt 00:02:36]} g6 {[%clk 01:00:40]} {[%emt 00:03:52]} 17. Bg2 {[%clk
01:00:58]} {[%emt 00:04:43]} Kg7 {[%clk 00:57:21]} {[%emt 00:03:49]} 18. O-O
{[%clk 00:59:13]} {[%emt 00:02:15]} Rab8 {[%clk 00:54:47]} {[%emt 00:03:04]} 19.
Re1 {[%clk 00:59:19]} {[%emt 00:00:24]} Rhd8 {[%clk 00:54:52]} {[%emt
00:00:25]} 20. Qc3 {[%clk 00:56:38]} {[%emt 00:03:11]} Re8 {[%clk 00:55:03]}
{[%emt 00:00:19]} 21. b4 {[%clk 00:52:46]} {[%emt 00:04:22]} Rbd8 {[%clk
00:44:11]} {[%emt 00:11:21]} 22. Rxe8 {[%clk 00:47:48]} {[%emt 00:05:28]} Rxe8
{[%clk 00:44:39]} {[%emt 00:00:02]} 23. e4 {[%clk 00:48:11]} {[%emt 00:00:07]}
dxe4 {[%clk 00:44:17]} {[%emt 00:00:53]} 24. Rxe4 {[%clk 00:48:18]} {[%emt
00:00:23]} Rxe4 {[%clk 00:44:39]} {[%emt 00:00:07]} 25. Bxe4 {[%clk 00:48:43]}
{[%emt 00:00:06]} Qf6 {[%clk 00:34:07]} {[%emt 00:11:02]} 26. a4 {[%clk
00:44:48]} {[%emt 00:04:25]} Bd1 {[%clk 00:30:29]} {[%emt 00:04:08]} 27. a5
{[%clk 00:42:11]} {[%emt 00:03:08]} Be2 {[%clk 00:28:13]} {[%emt 00:02:46]} 28.
Qc5 {[%clk 00:39:36]} {[%emt 00:03:05]} a6 {[%clk 00:28:32]} {[%emt 00:00:12]}
29. Qe5 {[%clk 00:39:11]} {[%emt 00:00:54]} Qxe5 {[%clk 00:21:09]} {[%emt
00:07:53]} 30. dxe5 {[%clk 00:39:32]} {[%emt 00:00:09]} Kf8 {[%clk 00:21:35]}
{[%emt 00:00:04]} 31. f3 {[%clk 00:38:39]} {[%emt 00:01:22]} Ke7 {[%clk
00:20:05]} {[%emt 00:02:00]} 32. Kf2 {[%clk 00:38:58]} {[%emt 00:00:11]} Bc4
{[%clk 00:20:15]} {[%emt 00:00:20]} 33. Ke3 {[%clk 00:39:17]} {[%emt 00:00:11]}
Be6 {[%clk 00:14:07]} {[%emt 00:06:38]} 34. Kd4 {[%clk 00:33:11]} {[%emt
00:06:36]} Kd8 {[%clk 00:13:47]} {[%emt 00:00:50]} 35. Kc5 {[%clk 00:31:47]}
{[%emt 00:01:54]} Kc7 {[%clk 00:14:11]} {[%emt 00:00:06]} 36. Bd3 {[%clk
00:31:16]} {[%emt 00:01:01]} Bd5 {[%clk 00:12:42]} {[%emt 00:01:59]} 37. Bc4
{[%clk 00:30:09]} {[%emt 00:01:37]} Bxc4 {[%clk 00:13:07]} {[%emt 00:00:06]} 38.
Kxc4 {[%clk 00:30:35]} {[%emt 00:00:03]} b6 {[%clk 00:13:33]} {[%emt 00:00:04]}
39. g4 {[%clk 00:30:20]} {[%emt 00:00:45]} c5 {[%clk 00:12:06]} {[%emt
00:01:58]} 40. axb6+ {[%clk 00:30:26]} {[%emt 00:00:24]} Kxb6 {[%clk 00:12:34]}
{[%emt 00:00:01]} 41. bxc5+ {[%clk 00:30:50]} {[%emt 00:00:06]} Kc6 {[%clk
00:12:59]} {[%emt 00:00:05]} 42. f4 {[%clk 00:31:16]} {[%emt 00:00:04]} a5
{[%clk 00:10:28]} {[%emt 00:03:01]} 43. f5 {[%clk 00:31:16]} {[%emt 00:00:30]}
gxf5 {[%clk 00:10:16]} {[%emt 00:00:43]} 44. gxf5 {[%clk 00:31:42]} {[%emt
00:00:04]} a4 {[%clk 00:10:32]} {[%emt 00:00:14]} 45. e6 {[%clk 00:32:03]}
{[%emt 00:00:08]} fxe6 {[%clk 00:10:49]} {[%emt 00:00:13]} 46. f6 {[%emt
00:00:51]} 1-0

[Event "18èmeFestival International d’Echecsde Rochefort"]
[Site "Rochefort, France"]
[Date "2019.02.19"]
[Round "5.3"]
[White "SOLOZHENKIN, Evgeniy"]
[Black "MARTINEZ DUANY, Lelys Stanley"]
[Result "1-0"]
[TimeControl "1h30 min/40coups + 30 min +  30sec/coup"]
[WhiteTitle "GM"]
[BlackTitle "GM"]
[WhiteFideId "4102266"]
[BlackFideId "3504727"]
[WhiteElo "2423"]
[BlackElo "2547"]

1. e4 {[%clk 01:30:56]} {[%emt 00:00:02]} c5 {[%clk 01:27:40]} {[%emt
00:03:20]} 2. Nf3 {[%clk 01:31:19]} {[%emt 00:00:07]} Nc6 {[%clk 01:27:59]}
{[%emt 00:00:12]} 3. d4 {[%clk 01:31:35]} {[%emt 00:00:14]} cxd4 {[%clk
01:28:13]} {[%emt 00:00:17]} 4. Nxd4 {[%clk 01:32:02]} {[%emt 00:00:03]} g6
{[%clk 01:28:20]} {[%emt 00:00:22]} 5. c4 {[%clk 01:31:58]} {[%emt 00:00:34]}
Bg7 {[%clk 01:28:42]} {[%emt 00:00:07]} 6. Be3 {[%clk 01:32:16]} {[%emt
00:00:12]} Nf6 {[%clk 01:28:58]} {[%emt 00:00:16]} 7. Nc3 {[%clk 01:32:40]}
{[%emt 00:00:05]} O-O {[%clk 01:29:10]} {[%emt 00:00:18]} 8. Be2 {[%clk
01:33:03]} {[%emt 00:00:06]} d6 {[%clk 01:29:37]} {[%emt 00:00:05]} 9. O-O
{[%clk 01:32:59]} {[%emt 00:00:33]} Bd7 {[%clk 01:30:01]} {[%emt 00:00:06]} 10.
Qd2 {[%clk 01:30:48]} {[%emt 00:02:41]} Nxd4 {[%clk 01:30:24]} {[%emt
00:00:07]} 11. Bxd4 {[%clk 01:31:15]} {[%emt 00:00:03]} Bc6 {[%clk 01:30:48]}
{[%emt 00:00:06]} 12. f3 {[%clk 01:31:35]} {[%emt 00:00:09]} a5 {[%clk
01:31:14]} {[%emt 00:00:04]} 13. b3 {[%clk 01:30:26]} {[%emt 00:01:39]} Nd7
{[%clk 01:31:38]} {[%emt 00:00:07]} 14. Be3 {[%clk 01:30:28]} {[%emt 00:00:27]}
Nc5 {[%clk 01:32:03]} {[%emt 00:00:06]} 15. Rab1 {[%clk 01:30:08]} {[%emt
00:00:50]} Be5 {[%clk 01:31:42]} {[%emt 00:00:52]} 16. Rfd1 {[%clk 01:28:24]}
{[%emt 00:02:13]} e6 {[%clk 01:30:28]} {[%emt 00:01:44]} 17. g3 {[%clk
01:27:35]} {[%emt 00:01:19]} Qe7 {[%clk 01:28:00]} {[%emt 00:02:58]} 18. Nb5
{[%clk 01:22:46]} {[%emt 00:05:19]} Rfd8 {[%clk 01:26:57]} {[%emt 00:01:33]} 19.
Nd4 {[%clk 01:14:58]} {[%emt 00:08:18]} Be8 {[%clk 01:26:21]} {[%emt 00:01:05]}
20. Bf1 {[%clk 01:13:22]} {[%emt 00:02:06]} Bg7 {[%clk 01:18:59]} {[%emt
00:07:53]} 21. Qf2 {[%clk 00:49:23]} {[%emt 00:24:29]} b6 {[%clk 01:14:13]}
{[%emt 00:05:16]} 22. Rd2 {[%clk 00:49:34]} {[%emt 00:00:20]} d5 {[%clk
01:10:46]} {[%emt 00:03:57]} 23. exd5 {[%clk 00:43:13]} {[%emt 00:06:51]} exd5
{[%clk 01:11:08]} {[%emt 00:00:07]} 24. cxd5 {[%clk 00:42:13]} {[%emt
00:01:30]} Rxd5 {[%clk 01:11:25]} {[%emt 00:00:14]} 25. Bc4 {[%clk 00:42:32]}
{[%emt 00:00:11]} Rdd8 {[%clk 01:09:12]} {[%emt 00:02:42]} 26. Rbd1 {[%clk
00:41:56]} {[%emt 00:01:06]} Qf6 {[%clk 01:01:48]} {[%emt 00:07:54]} 27. Kg2
{[%clk 00:39:53]} {[%emt 00:02:33]} Rac8 {[%clk 00:58:51]} {[%emt 00:03:27]} 28.
Nb5 {[%clk 00:25:56]} {[%emt 00:14:28]} Rxd2 {[%clk 00:55:13]} {[%emt
00:04:08]} 29. Rxd2 {[%clk 00:26:20]} {[%emt 00:00:06]} Bf8 {[%clk 00:44:00]}
{[%emt 00:11:42]} 30. Bd4 {[%clk 00:25:43]} {[%emt 00:01:07]} Qf5 {[%clk
00:38:21]} {[%emt 00:06:09]} 31. Ba1 {[%clk 00:19:45]} {[%emt 00:06:28]} Ne6
{[%clk 00:31:45]} {[%emt 00:07:07]} 32. Nd4 {[%clk 00:12:55]} {[%emt 00:07:20]}
Qb1 {[%clk 00:31:13]} {[%emt 00:01:02]} 33. Nxe6 {[%clk 00:12:53]} {[%emt
00:00:33]} Qxa1 {[%clk 00:31:34]} {[%emt 00:00:09]} 34. Nxf8 {[%clk 00:13:06]}
{[%emt 00:00:17]} b5 {[%clk 00:31:21]} {[%emt 00:00:43]} 35. Nd7 {[%clk
00:10:20]} {[%emt 00:03:15]} bxc4 {[%clk 00:31:24]} {[%emt 00:00:28]} 36. Nb6
{[%clk 00:10:40]} {[%emt 00:00:11]} c3 {[%clk 00:28:03]} {[%emt 00:03:50]} 37.
Nxc8 {[%clk 00:06:33]} {[%emt 00:04:37]} cxd2 {[%clk 00:28:27]} {[%emt
00:00:06]} 38. Qxd2 {[%clk 00:06:56]} {[%emt 00:00:07]} Bb5 {[%clk 00:28:51]}
{[%emt 00:00:05]} 39. Qf2 {[%clk 00:04:21]} {[%emt 00:03:04]} a4 {[%clk
00:27:55]} {[%emt 00:01:27]} 40. Nd6 {[%clk 00:03:29]} {[%emt 00:01:22]} axb3
{[%clk 00:21:20]} {[%emt 00:07:06]} 41. axb3 {[%clk 00:03:54]} {[%emt
00:00:06]} Bc6 {[%clk 00:18:48]} {[%emt 00:03:01]} 42. Nc4 {[%clk 00:01:48]}
{[%emt 00:02:34]} Bd5 {[%clk 00:14:27]} {[%emt 00:04:53]} 43. Qd2 {[%clk
00:28:20]} {[%emt 00:03:56]} Be6 {[%clk 00:43:12]} {[%emt 00:01:46]} 44. g4
{[%clk 00:26:39]} {[%emt 00:02:12]} Qb1 {[%clk 00:42:32]} {[%emt 00:01:10]} 45.
Qc3 {[%clk 00:26:25]} {[%emt 00:00:42]} Qd1 {[%clk 00:42:06]} {[%emt 00:00:58]}
46. h4 {[%clk 00:12:54]} {[%emt 00:14:01]} Qe2+ {[%clk 00:36:52]} {[%emt
00:05:44]} 47. Kg3 {[%clk 00:13:19]} {[%emt 00:00:05]} Qf1 {[%clk 00:37:16]}
{[%emt 00:00:06]} 48. Ne3 {[%clk 00:12:42]} {[%emt 00:01:07]} Qg1+ {[%clk
00:37:13]} {[%emt 00:00:34]} 49. Ng2 {[%clk 00:12:55]} {[%emt 00:00:16]} Qb6
{[%clk 00:30:48]} {[%emt 00:06:55]} 50. b4 {[%clk 00:13:03]} {[%emt 00:00:22]}
Qd6+ {[%clk 00:30:14]} {[%emt 00:01:04]} 51. Kf2 {[%clk 00:13:19]} {[%emt
00:00:12]} h6 {[%clk 00:28:48]} {[%emt 00:01:58]} 52. Qc5 {[%clk 00:12:31]}
{[%emt 00:01:16]} Qd3 {[%clk 00:27:01]} {[%emt 00:02:18]} 53. Qe3 {[%clk
00:06:27]} {[%emt 00:06:34]} Qb1 {[%clk 00:23:46]} {[%emt 00:03:46]} 54. Qc3
{[%clk 00:05:59]} {[%emt 00:00:58]} Bd5 {[%clk 00:21:41]} {[%emt 00:02:34]} 55.
Kg3 {[%clk 00:05:57]} {[%emt 00:00:31]} Qf1 {[%clk 00:21:14]} {[%emt 00:00:57]}
56. Qf6 {[%clk 00:05:34]} {[%emt 00:00:50]} Bb7 {[%clk 00:20:50]} {[%emt
00:00:58]} 57. h5 {[%clk 00:04:58]} {[%emt 00:01:06]} g5 {[%clk 00:19:33]}
{[%emt 00:01:46]} 58. Qf5 {[%clk 00:05:13]} {[%emt 00:00:14]} Ba6 {[%clk
00:19:24]} {[%emt 00:00:41]} 59. Qe4 {[%clk 00:05:01]} {[%emt 00:00:38]} Bb5
{[%clk 00:18:37]} {[%emt 00:01:21]} 60. f4 {[%clk 00:04:41]} {[%emt 00:00:49]}
Qc1 {[%clk 00:17:40]} {[%emt 00:01:26]} 61. fxg5 {[%clk 00:04:19]} {[%emt
00:00:54]} hxg5 {[%clk 00:16:27]} {[%emt 00:01:43]} 62. Qe5 {[%clk 00:03:51]}
{[%emt 00:00:53]} Qc6 {[%clk 00:05:35]} {[%emt 00:11:26]} 63. Qxg5+ {[%clk
00:03:53]} {[%emt 00:00:28]} Kh7 {[%clk 00:05:22]} {[%emt 00:00:43]} 64. Qc5
{[%clk 00:02:46]} {[%emt 00:01:37]} Qd7 {[%clk 00:05:16]} {[%emt 00:00:37]} 65.
Qf5+ {[%clk 00:02:38]} {[%emt 00:00:38]} Qxf5 {[%clk 00:05:35]} {[%emt
00:00:12]} 66. gxf5 {[%clk 00:03:06]} {[%emt 00:00:02]} Kg7 {[%clk 00:04:53]}
{[%emt 00:01:12]} 67. Ne3 {[%clk 00:03:17]} {[%emt 00:00:19]} Be2 {[%clk
00:05:00]} {[%emt 00:00:23]} 68. Ng4 {[%clk 00:03:39]} {[%emt 00:00:08]} f6
{[%clk 00:04:46]} {[%emt 00:00:44]} 69. Kf4 {[%clk 00:04:02]} {[%emt 00:00:06]}
Bb5 {[%clk 00:04:53]} {[%emt 00:00:24]} 70. h6+ {[%clk 00:03:57]} {[%emt
00:00:35]} Kh7 {[%clk 00:05:17]} {[%emt 00:00:05]} 71. Nxf6+ {[%clk 00:04:15]}
{[%emt 00:00:12]} Kxh6 {[%clk 00:05:42]} {[%emt 00:00:05]} 72. Ke5 {[%clk
00:04:37]} {[%emt 00:00:08]} Kg7 {[%clk 00:05:59]} {[%emt 00:00:14]} 73. Ne4
{[%clk 00:04:57]} {[%emt 00:00:09]} 1-0



[ePGN "0.1;DGT LiveChess/2.2.3"]

[Event "18èmeFestival International d’Echecsde Rochefort"]
[Site "Rochefort, France"]
[Date "2019.02.19"]
[Round "6.1"]
[White "GASCON DEL NOGAL, Jose Rafael"]
[Black "MU, Ke"]
[Result "1/2-1/2"]
[TimeControl "1h30 min/40coups + 30 min +  30sec/coup"]
[WhiteTitle "GM"]
[WhiteFideId "3902463"]
[BlackFideId "8602778"]
[WhiteElo "2457"]
[BlackElo "2404"]

1. c4 {[%clk 01:29:41]} {[%emt 00:01:18]} c6 {[%clk 01:29:43]} {[%emt
00:01:16]} 2. e4 {[%clk 01:29:25]} {[%emt 00:00:47]} d5 {[%clk 01:29:07]}
{[%emt 00:01:07]} 3. exd5 {[%clk 01:29:46]} {[%emt 00:00:09]} cxd5 {[%clk
01:29:33]} {[%emt 00:00:04]} 4. d4 {[%clk 01:30:09]} {[%emt 00:00:06]} Nf6
{[%clk 01:29:45]} {[%emt 00:00:18]} 5. Nc3 {[%clk 01:30:34]} {[%emt 00:00:05]}
Nc6 {[%clk 01:30:06]} {[%emt 00:00:10]} 6. Bg5 {[%clk 01:26:39]} {[%emt
00:04:24]} dxc4 {[%clk 01:21:26]} {[%emt 00:09:11]} 7. Bxc4 {[%clk 01:25:13]}
{[%emt 00:01:54]} e6 {[%clk 01:16:12]} {[%emt 00:05:45]} 8. Nf3 {[%clk
01:25:22]} {[%emt 00:00:21]} Be7 {[%clk 01:16:29]} {[%emt 00:00:13]} 9. O-O
{[%clk 01:25:42]} {[%emt 00:00:09]} O-O {[%clk 01:16:56]} {[%emt 00:00:04]} 10.
Re1 {[%clk 01:24:17]} {[%emt 00:01:55]} a6 {[%clk 01:12:23]} {[%emt 00:05:03]}
11. Bb3 {[%clk 01:04:04]} {[%emt 00:20:43]} b5 {[%clk 01:00:28]} {[%emt
00:12:25]} 12. d5 {[%clk 01:00:43]} {[%emt 00:03:51]} Nxd5 {[%clk 00:59:51]}
{[%emt 00:01:07]} 13. Bxd5 {[%clk 01:00:20]} {[%emt 00:00:52]} exd5 {[%clk
01:00:15]} {[%emt 00:00:06]} 14. Bxe7 {[%clk 00:54:32]} {[%emt 00:06:19]} Nxe7
{[%clk 01:00:39]} {[%emt 00:00:06]} 15. Nd4 {[%clk 00:54:34]} {[%emt 00:00:27]}
Qd6 {[%clk 00:57:18]} {[%emt 00:03:49]} 16. Qh5 {[%clk 00:43:26]} {[%emt
00:11:40]} b4 {[%clk 00:51:04]} {[%emt 00:06:44]} 17. Nce2 {[%clk 00:40:57]}
{[%emt 00:02:58]} Ng6 {[%clk 00:46:08]} {[%emt 00:05:28]} 18. Rad1 {[%clk
00:39:59]} {[%emt 00:01:28]} Re8 {[%clk 00:32:23]} {[%emt 00:14:14]} 19. Qg5
{[%clk 00:35:25]} {[%emt 00:05:03]} h6 {[%clk 00:31:10]} {[%emt 00:01:44]} 20.
Qd2 {[%clk 00:35:45]} {[%emt 00:00:09]} Be6 {[%clk 00:29:59]} {[%emt 00:01:41]}
21. b3 {[%clk 00:33:07]} {[%emt 00:03:09]} Rad8 {[%clk 00:29:50]} {[%emt
00:00:39]} 22. h3 {[%clk 00:32:59]} {[%emt 00:00:37]} a5 {[%clk 00:28:58]}
{[%emt 00:01:22]} 23. Rc1 {[%clk 00:29:39]} {[%emt 00:03:50]} Bd7 {[%clk
00:28:59]} {[%emt 00:00:29]} 24. Ng3 {[%clk 00:28:57]} {[%emt 00:01:12]} Nh4
{[%clk 00:24:36]} {[%emt 00:04:54]} 25. Rxe8+ {[%clk 00:27:38]} {[%emt
00:01:48]} Rxe8 {[%clk 00:24:50]} {[%emt 00:00:16]} 26. Rd1 {[%clk 00:27:55]}
{[%emt 00:00:13]} Rc8 {[%clk 00:16:12]} {[%emt 00:09:08]} 1/2-1/2

[Event "18èmeFestival International d’Echecsde Rochefort"]
[Site "Rochefort, France"]
[Date "2019.02.19"]
[Round "6.4"]
[White "DEMUTH, Adrien"]
[Black "SOLOZHENKIN, Evgeniy"]
[Result "1/2-1/2"]
[TimeControl "1h30 min/40coups + 30 min +  30sec/coup"]
[WhiteTitle "GM"]
[BlackTitle "GM"]
[WhiteFideId "642274"]
[BlackFideId "4102266"]
[WhiteElo "2519"]
[BlackElo "2423"]

1. c4 {[%clk 01:23:20]} {[%emt 00:07:40]} e6 {[%clk 01:26:52]} {[%emt
00:04:08]} 2. Nf3 {[%clk 01:23:24]} {[%emt 00:00:26]} d5 {[%clk 01:27:16]}
{[%emt 00:00:06]} 3. d4 {[%clk 01:22:16]} {[%emt 00:01:38]} Nf6 {[%clk
01:27:09]} {[%emt 00:00:37]} 4. Nc3 {[%clk 01:22:40]} {[%emt 00:00:06]} dxc4
{[%clk 01:26:43]} {[%emt 00:00:56]} 5. e4 {[%clk 01:22:16]} {[%emt 00:00:55]}
Bb4 {[%clk 01:27:05]} {[%emt 00:00:07]} 6. Bg5 {[%clk 01:21:45]} {[%emt
00:01:01]} c5 {[%clk 01:27:04]} {[%emt 00:00:31]} 7. e5 {[%clk 01:21:31]}
{[%emt 00:00:45]} cxd4 {[%clk 01:27:09]} {[%emt 00:00:24]} 8. Nxd4 {[%clk
01:21:50]} {[%emt 00:00:11]} Qa5 {[%clk 01:23:22]} {[%emt 00:04:17]} 9. exf6
{[%clk 01:22:02]} {[%emt 00:00:18]} Bxc3+ {[%clk 01:23:26]} {[%emt 00:00:27]}
10. bxc3 {[%clk 01:22:27]} {[%emt 00:00:05]} Qxg5 {[%clk 01:23:52]} {[%emt
00:00:03]} 11. fxg7 {[%clk 01:22:52]} {[%emt 00:00:06]} Qxg7 {[%clk 01:24:18]}
{[%emt 00:00:03]} 12. Qd2 {[%clk 01:23:16]} {[%emt 00:00:06]} O-O {[%clk
01:15:52]} {[%emt 00:08:56]} 13. Bxc4 {[%clk 01:23:42]} {[%emt 00:00:05]} Rd8
{[%clk 01:14:44]} {[%emt 00:01:37]} 14. Qe3 {[%clk 01:14:51]} {[%emt 00:09:21]}
Bd7 {[%clk 01:14:58]} {[%emt 00:00:16]} 15. O-O {[%clk 01:13:54]} {[%emt
00:01:28]} Nc6 {[%clk 01:15:21]} {[%emt 00:00:07]} 16. Nf3 {[%clk 01:13:46]}
{[%emt 00:00:37]} Be8 {[%clk 01:08:05]} {[%emt 00:07:45]} 17. Rab1 {[%clk
00:51:37]} {[%emt 00:22:41]} Rac8 {[%clk 01:04:47]} {[%emt 00:03:48]} 18. Ng5
{[%clk 00:40:23]} {[%emt 00:11:44]} Rc7 {[%clk 00:32:42]} {[%emt 00:32:34]} 19.
f4 {[%clk 00:24:00]} {[%emt 00:16:54]} h6 {[%clk 00:30:11]} {[%emt 00:03:01]}
20. Ne4 {[%clk 00:23:40]} {[%emt 00:00:49]} Ne7 {[%clk 00:30:03]} {[%emt
00:00:38]} 21. Qe2 {[%clk 00:18:18]} {[%emt 00:05:53]} Bc6 {[%clk 00:28:10]}
{[%emt 00:02:22]} 22. Rbd1 {[%clk 00:11:45]} {[%emt 00:07:04]} Rxd1 {[%clk
00:25:30]} {[%emt 00:03:10]} 23. Rxd1 {[%clk 00:12:12]} {[%emt 00:00:04]} Nd5
{[%clk 00:17:39]} {[%emt 00:08:21]} 24. Bxd5 {[%clk 00:11:20]} {[%emt
00:01:21]} Bxd5 {[%clk 00:18:03]} {[%emt 00:00:06]} 25. Rd3 {[%clk 00:05:57]}
{[%emt 00:05:53]} Bc4 {[%clk 00:13:11]} {[%emt 00:05:22]} 26. Rd8+ {[%clk
00:04:11]} {[%emt 00:02:16]} Kh7 {[%clk 00:13:40]} {[%emt 00:00:01]} 27. Qh5
{[%clk 00:03:11]} {[%emt 00:01:31]} f6 {[%clk 00:14:04]} {[%emt 00:00:06]} 28.
Qh4 {[%clk 00:02:38]} {[%emt 00:01:03]} Rf7 {[%clk 00:14:29]} {[%emt 00:00:05]}
29. Nd6 {[%clk 00:02:29]} {[%emt 00:00:40]} Bd5 {[%clk 00:14:54]} {[%emt
00:00:04]} 30. Qg3 {[%clk 00:00:44]} {[%emt 00:02:15]} Qxg3 {[%clk 00:09:25]}
{[%emt 00:05:59]} 31. hxg3 {[%clk 00:01:13]} Rc7 {[%clk 00:09:54]} 32. Ne8
{[%clk 00:01:07]} {[%emt 00:00:37]} Rxc3 {[%clk 00:10:16]} {[%emt 00:00:07]} 33.
Nxf6+ {[%clk 00:01:23]} {[%emt 00:00:14]} Kg6 {[%clk 00:10:41]} {[%emt
00:00:04]} 34. Nxd5 {[%clk 00:01:20]} {[%emt 00:00:34]} exd5 {[%clk 00:11:07]}
{[%emt 00:00:04]} 35. Rd6+ {[%clk 00:00:54]} {[%emt 00:00:57]} Kf5 {[%clk
00:11:10]} {[%emt 00:00:27]} 36. Rxd5+ {[%clk 00:00:50]} {[%emt 00:00:34]} Kg4
{[%clk 00:10:06]} {[%emt 00:01:33]} 37. Kh2 {[%clk 00:00:57]} {[%emt 00:00:23]}
Rxg3 {[%clk 00:09:20]} {[%emt 00:01:16]} 38. f5 {[%clk 00:01:16]} {[%emt
00:00:11]} Rc3 {[%clk 00:09:35]} {[%emt 00:00:13]} 39. Rd7 {[%clk 00:00:34]}
{[%emt 00:01:13]} 1/2-1/2